bitfinex/quotes_BTCUSD_20250825
["timestamp","ask_amount","ask_price","bid_price","bid_amount"]
[1756120012480,0.53587456,111220.0,111210.0,0.24184475]
[1756120012657,0.53587456,111220.0,111210.0,0.24691475]
[1756120013059,0.53087456,111220.0,111210.0,0.24691475]
[1756120013739,0.53087456,111220.0,111210.0,0.24683475]
[1756120014886,0.52889456,111220.0,111210.0,0.24683475]
[1756120015101,0.51680377,111220.0,111210.0,0.24683475]
[1756120015347,0.335,111220.0,111210.0,0.27151823]
[1756120015557,0.20683793,111230.0,111210.0,0.27151823]
[1756120015765,0.17980993,111230.0,111210.0,0.26855823]
[1756120015992,0.31567004,111230.0,111220.0,0.00296]
[1756120016205,0.17980993,111230.0,111220.0,0.09195475]
[1756120016857,0.001,111230.0,111220.0,0.11910657]
[1756120017057,0.501,111230.0,111220.0,0.11910657]
[1756120017375,4.0235216,111230.0,111220.0,0.11910657]
[1756120017578,0.1798076,111230.0,111220.0,0.09195475]
[1756120017789,0.1808076,111230.0,111220.0,0.09195475]
[1756120017999,0.1798076,111230.0,111220.0,0.09195475]
[1756120018418,0.1808076,111230.0,111220.0,0.09195475]
[1756120018767,0.1818076,111230.0,111220.0,0.09195475]
[1756120018982,0.1818076,111230.0,111220.0,0.12602257]
[1756120019183,0.1958769,111230.0,111220.0,0.12602257]
[1756120019531,0.1958769,111230.0,111220.0,0.09195475]
[1756120019884,0.1958769,111230.0,111220.0,0.09645033]
[1756120019885,0.0160693,111230.0,111220.0,0.09645033]
[1756120021130,0.1958769,111230.0,111220.0,0.24904254]
[1756120021328,0.1958769,111230.0,111220.0,0.24679475]
[1756120021511,0.002,111230.0,111220.0,0.24679475]
[1756120021712,0.1818076,111230.0,111220.0,0.09195475]
[1756120021916,0.25668158,111230.0,111220.0,0.08688475]
[1756120022123,0.25760158,111230.0,111220.0,0.08688475]
[1756120022523,0.1847376,111230.0,111220.0,0.08688475]
[1756120022971,0.07746596,111230.0,111220.0,0.08688475]
[1756120023196,0.23230596,111230.0,111220.0,0.08688475]
[1756120023640,0.17982377,111220.0,111210.0,0.22396]
[1756120023839,0.17982377,111220.0,111210.0,0.24168475]
[1756120024069,0.18472377,111220.0,111210.0,0.08688475]
[1756120024288,0.56573574,111220.0,111210.0,0.08688475]
[1756120024497,0.52472377,111220.0,111210.0,0.08688475]
[1756120024931,0.53879446,111220.0,111210.0,0.08688475]
[1756120025362,0.53879446,111220.0,111210.0,0.08788475]
[1756120025558,0.56582446,111220.0,111210.0,0.08788475]
[1756120027367,0.56293446,111220.0,111210.0,0.08788475]
[1756120028070,0.56293446,111220.0,111210.0,0.08999475]
[1756120028244,0.56293446,111220.0,111210.0,0.09295475]
[1756120028893,0.56293446,111220.0,111210.0,0.08788475]
[1756120029680,0.56092446,111220.0,111210.0,0.09526274]
[1756120029863,0.56092446,111220.0,111210.0,0.09301475]
[1756120030065,0.56092446,111220.0,111210.0,0.09526274]
[1756120030790,0.38110069,111220.0,111210.0,0.09526274]
[1756120031003,0.35407069,111220.0,111210.0,0.09526274]
[1756120031204,0.01407069,111220.0,111210.0,0.09526274]
[1756120031408,0.01407069,111220.0,111210.0,0.09751073]
[1756120032228,0.51980865,111230.0,111210.0,0.09751073]
[1756120032454,0.51980865,111230.0,111220.0,0.24164475]
[1756120032671,0.37058174,111240.0,111220.0,0.24164475]
[1756120032672,0.21582174,111240.0,111220.0,0.24677475]
[1756120032852,0.027027,111240.0,111230.0,0.00524759]
[1756120033083,0.17979144,111240.0,111230.0,0.09426234]
[1756120033735,0.37935438,111250.0,111230.0,0.09201475]
[1756120033925,0.34,111240.0,111230.0,0.00513]
[1756120034149,0.34,111240.0,111230.0,0.09201475]
[1756120034343,0.34,111240.0,111230.0,0.09101475]
[1756120034488,0.34,111240.0,111230.0,0.09001475]
[1756120034698,0.51979144,111240.0,111230.0,0.11449223]
[1756120034937,0.34,111240.0,111230.0,0.09001475]
[1756120035518,0.35406799,111240.0,111230.0,0.09001475]
[1756120036151,0.01406799,111240.0,111230.0,0.09226234]
[1756120036685,0.01406799,111240.0,111230.0,0.09450993]
[1756120038200,0.01406799,111240.0,111230.0,0.09850993]
[1756120038614,0.01406799,111240.0,111230.0,0.18537958]
[1756120038818,0.01406799,111240.0,111230.0,0.1808844]
[1756120040385,0.01406799,111240.0,111230.0,0.24873475]
[1756120041984,0.19574943,111240.0,111230.0,0.24773475]
[1756120042192,0.01595799,111240.0,111230.0,0.24773475]
[1756120042606,0.19873943,111240.0,111230.0,0.24560475]
[1756120042841,0.23748596,111240.0,111230.0,0.09088475]
[1756120043104,0.56341797,111240.0,111230.0,0.09088475]
[1756120043937,0.59044397,111240.0,111230.0,0.08688475]
[1756120044179,0.1798076,111230.0,111220.0,0.22384]
[1756120044389,0.1817076,111230.0,111220.0,0.24156475]
[1756120044613,0.1846876,111230.0,111220.0,0.24156475]
[1756120045037,0.1846876,111230.0,111220.0,0.08688475]
[1756120045264,0.1846876,111230.0,111220.0,0.24156475]
[1756120045687,0.1846876,111230.0,111220.0,0.24256475]
[1756120046906,0.19875652,111230.0,111220.0,0.08788475]
[1756120047114,0.19875652,111230.0,111220.0,0.24256475]
[1756120047559,0.27718857,111230.0,111220.0,0.08888475]
[1756120047780,0.61718857,111230.0,111220.0,0.002]
[1756120047991,0.53577652,111230.0,111220.0,0.002]
[1756120048221,0.53577652,111230.0,111220.0,0.00413]
[1756120048635,0.53577652,111230.0,111220.0,0.001]
[1756120048843,0.17982377,111220.0,111210.0,0.15992799]
[1756120049083,0.17982377,111220.0,111210.0,0.24894274]
[1756120049292,0.17982377,111220.0,111210.0,0.24669475]
[1756120049947,0.53387652,111230.0,111210.0,0.24669475]
[1756120050186,0.53387837,111230.0,111220.0,0.08913254]
[1756120050429,0.53387837,111230.0,111220.0,0.09126254]
[1756120050430,0.53576837,111230.0,111220.0,0.09126254]
[1756120050863,0.53576837,111230.0,111220.0,0.09426254]
[1756120051954,0.01406892,111230.0,111220.0,0.09426254]
[1756120052169,0.19387652,111230.0,111220.0,0.09426254]
[1756120052389,0.19387652,111230.0,111220.0,0.09201475]
[1756120052602,0.27402587,111230.0,111220.0,0.24156475]
[1756120052782,0.27402587,111230.0,111220.0,0.08688475]
[1756120053017,0.27402587,111230.0,111220.0,0.24156475]
[1756120053653,0.19576652,111230.0,111220.0,0.24156475]
[1756120055097,0.19576652,111230.0,111220.0,0.24369475]
[1756120055478,0.19576652,111230.0,111220.0,0.08901475]
[1756120055684,0.19576652,111230.0,111220.0,0.24369475]
[1756120056084,0.51008569,111240.0,111220.0,0.24369475]
[1756120056308,0.1818076,111230.0,111220.0,0.24369475]
[1756120056511,0.1818076,111230.0,111220.0,0.24669475]
[1756120058405,0.50807569,111240.0,111220.0,0.24669475]
[1756120059244,0.49908612,111240.0,111220.0,0.24369475]
[1756120059459,0.49908612,111240.0,111230.0,0.003]
[1756120059687,0.368026,111240.0,111230.0,0.09423234]
[1756120059890,0.34,111240.0,111230.0,0.09423234]
[1756120060838,0.51979144,111240.0,111230.0,0.09423234]
[1756120061037,0.51979144,111240.0,111230.0,0.09198475]
[1756120061287,0.51979144,111240.0,111230.0,0.09423234]
[1756120061488,0.34,111240.0,111230.0,0.09423234]
[1756120061697,0.34,111240.0,111230.0,0.09847993]
[1756120061900,0.05004409,111250.0,111230.0,0.20644305]
[1756120062135,0.00895003,111250.0,111240.0,0.24455475]
[1756120062261,0.00895003,111250.0,111240.0,0.24665475]
[1756120063708,0.00895003,111250.0,111240.0,0.24765475]
[1756120064342,0.00895003,111250.0,111240.0,0.24865475]
[1756120064626,0.00895003,111250.0,111240.0,0.31158606]
[1756120065277,0.00895003,111250.0,111240.0,0.31163606]
[1756120068733,0.00895003,111250.0,111240.0,0.31159606]
[1756120076084,0.00895003,111250.0,111240.0,0.15699606]
[1756120076303,0.00895003,111250.0,111240.0,0.31380345]
[1756120076522,0.00895003,111250.0,111240.0,0.30642606]
[1756120078641,0.00014469,111250.0,111240.0,0.30642606]
[1756120078842,0.00014469,111250.0,111240.0,0.4862175]
[1756120081421,0.00014469,111250.0,111240.0,0.4913475]
[1756120081873,0.00014469,111250.0,111240.0,0.3367875]
[1756120082061,0.00014469,111250.0,111240.0,0.4913075]
[1756120082683,0.00014469,111250.0,111240.0,0.80875652]
[1756120083016,0.00014469,111250.0,111240.0,1.69591933]
[1756120083448,0.00014469,111250.0,111240.0,0.83376952]
[1756120083869,0.00014469,111250.0,111240.0,0.83676952]
[1756120084065,0.00014469,111250.0,111240.0,0.68224952]
[1756120084273,0.00014469,111250.0,111240.0,1.69691933]
[1756120084434,0.00014469,111250.0,111240.0,0.68224952]
[1756120084633,0.00014469,111250.0,111240.0,0.83676952]
[1756120086177,0.00014469,111250.0,111240.0,0.68224952]
[1756120086381,0.00014469,111250.0,111240.0,0.83676952]
[1756120086607,0.00014469,111250.0,111240.0,0.68224952]
[1756120087107,0.00014469,111250.0,111240.0,0.83676952]
[1756120087951,0.00014469,111250.0,111240.0,0.68224952]
[1756120088160,0.00014469,111250.0,111240.0,0.83676952]
[1756120088720,0.00014469,111250.0,111240.0,0.68224952]
[1756120088927,0.00014469,111250.0,111240.0,0.83672952]
[1756120089135,0.00014469,111250.0,111240.0,0.38224952]
[1756120089349,0.00014469,111250.0,111240.0,0.60971652]
[1756120089539,0.00014469,111250.0,111240.0,0.35523652]
[1756120089815,0.00014469,111250.0,111240.0,0.50971652]
[1756120090209,0.00222469,111250.0,111240.0,0.24954475]
[1756120090630,0.00014469,111250.0,111240.0,0.24954475]
[1756120090842,0.00014469,111250.0,111240.0,0.42933619]
[1756120091051,0.00014469,111250.0,111240.0,0.24954475]
[1756120091701,0.00014469,111250.0,111240.0,0.42933619]
[1756120091919,0.00014469,111250.0,111240.0,0.51620584]
[1756120092144,0.00014469,111250.0,111240.0,0.36172584]
[1756120092347,0.00014469,111250.0,111240.0,0.51620584]
[1756120092722,0.00014469,111250.0,111240.0,0.36172584]
[1756120092930,0.00014469,111250.0,111240.0,0.51620584]
[1756120093560,0.00014469,111250.0,111240.0,0.1819344]
[1756120093768,0.00014469,111250.0,111240.0,0.51620584]
[1756120095535,0.00014469,111250.0,111240.0,0.1819344]
[1756120095790,0.00014469,111250.0,111240.0,0.51620584]
[1756120096197,0.00913367,111250.0,111240.0,0.3364144]
[1756120096400,0.00913367,111250.0,111240.0,0.51620584]
[1756120096592,0.00014469,111250.0,111240.0,0.51620584]
[1756120097320,0.00014469,111250.0,111240.0,0.3364144]
[1756120097531,0.00014469,111250.0,111240.0,0.1819344]
[1756120097855,0.00222469,111250.0,111240.0,0.08993475]
[1756120098058,0.00222469,111250.0,111240.0,0.24437475]
[1756120098194,0.01136347,111250.0,111240.0,0.24437475]
[1756120098398,0.00222469,111250.0,111240.0,0.24437475]
[1756120098595,0.00222469,111250.0,111240.0,0.08993475]
[1756120098815,0.18199997,111250.0,111240.0,0.08993475]
[1756120099022,0.18199997,111250.0,111240.0,0.24437475]
[1756120099232,0.21817603,111250.0,111240.0,0.24437475]
[1756120099470,0.18199997,111250.0,111240.0,0.24437475]
[1756120099645,0.1987495,111250.0,111240.0,0.08993475]
[1756120099853,0.1987495,111250.0,111240.0,0.24437475]
[1756120100070,0.21281539,111250.0,111240.0,0.24437475]
[1756120100271,0.55281539,111250.0,111240.0,0.08993475]
[1756120100477,0.62877529,111250.0,111240.0,0.00305]
[1756120100682,0.62877529,111250.0,111240.0,0.00205]
[1756120101089,0.637675,111250.0,111240.0,0.00205]
[1756120101505,0.62360911,111250.0,111240.0,0.00205]
[1756120102143,0.62360911,111250.0,111240.0,5e-05]
[1756120103721,0.6235928,111250.0,111240.0,5e-05]
[1756120105447,0.62336807,111250.0,111240.0,5e-05]
[1756120105994,0.54740817,111250.0,111240.0,5e-05]
[1756120107047,0.54738582,111250.0,111240.0,5e-05]
[1756120107224,0.57841282,111250.0,111240.0,5e-05]
[1756120108453,0.57641282,111250.0,111240.0,5e-05]
[1756120108891,0.57841282,111250.0,111240.0,5e-05]
[1756120109070,0.66528247,111250.0,111240.0,5e-05]
[1756120111551,0.81972247,111250.0,111240.0,5e-05]
[1756120113412,0.81970205,111250.0,111240.0,5e-05]
[1756120114473,4.66341605,111250.0,111240.0,5e-05]
[1756120116442,4.68086507,111250.0,111240.0,5e-05]
[1756120116610,4.69493379,111250.0,111240.0,5e-05]
[1756120117007,4.54049379,111250.0,111240.0,5e-05]
[1756120117234,4.69489379,111250.0,111240.0,5e-05]
[1756120119552,4.73476006,111250.0,111240.0,5e-05]
[1756120119917,4.73476732,111250.0,111240.0,5e-05]
[1756120120121,4.74311736,111250.0,111240.0,5e-05]
[1756120120321,4.5526397,111250.0,111240.0,5e-05]
[1756120120523,4.73485498,111250.0,111240.0,5e-05]
[1756120120745,4.73391498,111250.0,111240.0,5e-05]
[1756120121365,4.73485498,111250.0,111240.0,5e-05]
[1756120122091,4.73391498,111250.0,111240.0,5e-05]
[1756120122307,4.73485498,111250.0,111240.0,5e-05]
[1756120123094,4.70980723,111250.0,111240.0,5e-05]
[1756120123263,4.73487413,111250.0,111240.0,5e-05]
[1756120123672,4.73487417,111250.0,111240.0,5e-05]
[1756120125149,4.72080545,111250.0,111240.0,5e-05]
[1756120125713,4.78996545,111250.0,111240.0,5e-05]
[1756120125912,4.7962363,111250.0,111240.0,5e-05]
[1756120126527,4.79625662,111250.0,111240.0,5e-05]
[1756120128081,4.810326,111250.0,111240.0,5e-05]
[1756120128308,4.809386,111250.0,111240.0,5e-05]
[1756120128592,4.654986,111250.0,111240.0,5e-05]
[1756120128791,4.809386,111250.0,111240.0,5e-05]
[1756120129232,4.809386,111250.0,111240.0,0.00306]
[1756120129447,4.809386,111250.0,111240.0,5e-05]
[1756120129666,4.80940778,111250.0,111240.0,5e-05]
[1756120130328,4.80940778,111250.0,111240.0,0.00306]
[1756120130539,4.70358911,111250.0,111240.0,0.00515]
[1756120131465,4.70508911,111250.0,111240.0,0.00515]
[1756120131714,4.54918911,111250.0,111240.0,0.00515]
[1756120131935,4.70358911,111250.0,111240.0,0.00515]
[1756120132156,4.68947973,111250.0,111240.0,0.00515]
[1756120132834,4.24916021,111250.0,111240.0,0.00515]
[1756120133063,4.58292229,111250.0,111240.0,0.00515]
[1756120133505,4.24292333,111250.0,111240.0,0.00515]
[1756120133792,0.73720933,111250.0,111240.0,0.00515]
[1756120134031,0.73620933,111250.0,111240.0,0.00515]
[1756120134250,0.82407898,111250.0,111240.0,0.00515]
[1756120134690,0.66971898,111250.0,111240.0,0.00515]
[1756120134920,0.82407898,111250.0,111240.0,0.00515]
[1756120135143,0.68378703,111250.0,111240.0,0.00515]
[1756120135590,0.83814703,111250.0,111240.0,0.00515]
[1756120136249,0.68378703,111250.0,111240.0,0.00515]
[1756120136461,0.83814703,111250.0,111240.0,0.00515]
[1756120137627,0.75127738,111250.0,111240.0,0.00515]
[1756120138092,0.59691738,111250.0,111240.0,0.00515]
[1756120138315,0.75127738,111250.0,111240.0,0.09203475]
[1756120139615,0.59691738,111250.0,111240.0,0.09203475]
[1756120140735,0.4171421,111250.0,111240.0,0.09203475]
[1756120140877,0.38173196,111250.0,111240.0,0.09203475]
[1756120141087,0.56989029,111250.0,111240.0,0.09203475]
[1756120141644,0.56989223,111250.0,111240.0,0.09203475]
[1756120141855,0.56150917,111250.0,111240.0,0.09203475]
[1756120142264,0.64987582,111250.0,111240.0,0.09203475]
[1756120142477,0.80423582,111250.0,111240.0,0.09203475]
[1756120142686,0.71736617,111250.0,111240.0,0.09203475]
[1756120142892,0.71586617,111250.0,111240.0,0.09203475]
[1756120143549,0.74438917,111250.0,111240.0,0.09203475]
[1756120144210,0.74288917,111250.0,111240.0,0.09203475]
[1756120144895,0.58852917,111250.0,111240.0,0.09203475]
[1756120147215,0.36496776,111250.0,111240.0,0.09203475]
[1756120147438,0.35089971,111250.0,111240.0,0.09203475]
[1756120147692,0.01089971,111250.0,111240.0,0.09428214]
[1756120147908,0.002,111250.0,111240.0,0.34323358]
[1756120148115,0.002,111250.0,111240.0,0.49530619]
[1756120148342,0.002,111250.0,111240.0,0.58217584]
[1756120148553,0.001,111250.0,111240.0,0.58217584]
[1756120149627,0.34,111270.0,111240.0,0.58217584]
[1756120149829,0.34,111270.0,111250.0,0.09137913]
[1756120150492,0.51974299,111270.0,111250.0,0.09137913]
[1756120150706,0.35406459,111270.0,111250.0,0.09137913]
[1756120151049,0.35406459,111270.0,111250.0,0.15004615]
[1756120151540,0.02303191,111270.0,111250.0,0.15004615]
[1756120151784,0.02303191,111270.0,111250.0,0.14779896]
[1756120151984,0.20277593,111270.0,111250.0,0.08688475]
[1756120152186,0.20277593,111270.0,111250.0,0.24120475]
[1756120152961,0.02303191,111270.0,111250.0,0.24120475]
[1756120153606,0.00896732,111270.0,111260.0,0.00514]
[1756120153743,0.00896732,111270.0,111260.0,0.09202475]
[1756120153950,0.71005444,111280.0,111260.0,0.09202475]
[1756120153951,0.55573444,111280.0,111260.0,0.09202475]
[1756120154149,0.64260409,111280.0,111270.0,0.08688475]
[1756120154356,0.55573444,111280.0,111270.0,0.08688475]
[1756120155491,0.00880226,111280.0,111270.0,0.08688475]
[1756120155698,0.18870011,111290.0,111270.0,0.08688475]
[1756120155864,0.21585875,111290.0,111270.0,0.08688475]
[1756120156739,0.22491098,111290.0,111270.0,0.08688475]
[1756120156970,0.22591098,111290.0,111270.0,0.08688475]
[1756120157176,0.2409736,111290.0,111270.0,0.08688475]
[1756120158009,0.39227349,111290.0,111270.0,0.09579792]
[1756120158223,0.57198547,111290.0,111270.0,0.09579792]
[1756120158438,0.57198547,111290.0,111270.0,0.0980447]
[1756120158855,0.57198547,111290.0,111270.0,0.08913153]
[1756120159643,0.57198423,111290.0,111270.0,0.08913153]
[1756120159843,0.57198423,111290.0,111270.0,0.08688475]
[1756120160636,0.17972681,111280.0,111270.0,0.08688475]
[1756120160838,0.57198423,111290.0,111270.0,0.08688475]
[1756120161813,0.55792161,111290.0,111270.0,0.08688475]
[1756120162026,0.17972681,111280.0,111270.0,0.08688475]
[1756120162435,0.55792161,111290.0,111270.0,0.08688475]
[1756120162613,0.55692161,111290.0,111270.0,0.08688475]
[1756120163013,0.55592161,111290.0,111270.0,0.08688475]
[1756120163641,0.71116161,111290.0,111270.0,0.08688475]
[1756120164046,0.55692161,111290.0,111270.0,0.08913153]
[1756120164273,0.55792161,111290.0,111270.0,0.08688475]
[1756120164425,0.71216161,111290.0,111270.0,0.08913153]
[1756120164850,0.72622409,111290.0,111270.0,0.08913153]
[1756120165050,0.57198409,111290.0,111270.0,0.08913153]
[1756120165255,0.72622409,111290.0,111270.0,0.08913153]
[1756120165539,0.36525935,111290.0,111270.0,0.08913153]
[1756120165700,0.36525935,111290.0,111270.0,0.16051135]
[1756120165872,0.54497005,111290.0,111270.0,0.16051135]
[1756120166323,0.56169084,111290.0,111270.0,0.16051135]
[1756120166538,0.54497005,111290.0,111270.0,0.09137831]
[1756120167197,0.38198292,111290.0,111270.0,0.09137831]
[1756120167405,0.56169393,111290.0,111270.0,0.09137831]
[1756120168898,0.56169393,111290.0,111270.0,0.08913153]
[1756120169149,0.56169393,111290.0,111270.0,0.24333153]
[1756120169382,0.71589393,111290.0,111270.0,0.24108475]
[1756120170281,0.72425839,111290.0,111270.0,0.24108475]
[1756120170756,0.70753588,111290.0,111270.0,0.24108475]
[1756120171010,0.72426725,111290.0,111270.0,0.24108475]
[1756120171664,0.72426738,111290.0,111280.0,0.00224658]
[1756120171847,0.72426738,111290.0,111280.0,0.08688475]
[1756120172146,0.18872691,111280.0,111250.0,0.2682]
[1756120172316,0.17974296,111270.0,111260.0,0.08688475]
[1756120173113,0.19380602,111270.0,111260.0,0.08688475]
[1756120173314,0.17974296,111270.0,111260.0,0.08688475]
[1756120173926,0.17974296,111270.0,111260.0,0.08888475]
[1756120174295,0.0167508,111270.0,111260.0,0.09213173]
[1756120174503,0.0167508,111270.0,111260.0,0.09437871]
[1756120174713,0.0167508,111270.0,111260.0,0.09213173]
[1756120174921,0.0167508,111270.0,111260.0,0.08988475]
[1756120175307,0.0167508,111270.0,111260.0,0.24408475]
[1756120176331,0.03081369,111270.0,111260.0,0.24408475]
[1756120176530,0.03081369,111270.0,111260.0,0.27560339]
[1756120177050,0.03081369,111270.0,111260.0,0.24408475]
[1756120179627,0.03081369,111270.0,111260.0,0.24404475]
[1756120180630,0.0308464,111270.0,111260.0,0.24404475]
[1756120180826,0.0308464,111270.0,111260.0,0.08988475]
[1756120181021,0.0308464,111270.0,111260.0,0.24404475]
[1756120181655,0.01678351,111270.0,111260.0,0.24404475]
[1756120183051,0.01678351,111270.0,111260.0,0.08988475]
[1756120183264,0.55617759,111270.0,111260.0,0.08988475]
[1756120183462,0.56457284,111270.0,111260.0,0.08988475]
[1756120183664,0.59159184,111270.0,111260.0,0.08988475]
[1756120183893,0.59160005,111270.0,111260.0,0.08988475]
[1756120184278,0.59160005,111270.0,111260.0,0.08688475]
[1756120184691,0.17977488,111260.0,111240.0,5e-05]
[1756120184870,0.17977488,111260.0,111250.0,0.08688475]
[1756120184871,0.27460281,111260.0,111250.0,0.08688475]
[1756120185048,0.5365666,111260.0,111250.0,0.08688475]
[1756120187750,0.5375666,111260.0,111250.0,0.08688475]
[1756120188172,0.5385666,111260.0,111250.0,0.08688475]
[1756120189348,0.5655876,111260.0,111250.0,0.08688475]
[1756120190178,0.54879588,111260.0,111250.0,0.08688475]
[1756120190380,0.642682,111260.0,111250.0,0.08688475]
[1756120190584,0.04578299,111260.0,111250.0,0.08688475]
[1756120190803,0.22555787,111260.0,111250.0,0.08688475]
[1756120190984,0.22555512,111260.0,111250.0,0.08688475]
[1756120191324,0.17977528,111250.0,111240.0,5e-05]
[1756120191496,0.19653452,111250.0,111240.0,0.08693475]
[1756120192282,0.17977528,111250.0,111240.0,0.08693475]
[1756120193975,0.17977528,111250.0,111240.0,0.08698475]
[1756120194809,0.19384135,111250.0,111240.0,0.08698475]
[1756120197021,0.19384135,111250.0,111240.0,0.08923214]
[1756120197842,0.01406607,111250.0,111240.0,0.08923214]
[1756120198882,0.17977528,111250.0,111240.0,0.08923214]
[1756120199221,0.17977528,111250.0,111240.0,0.08698475]
[1756120199500,0.17977528,111250.0,111240.0,0.24258475]
[1756120200782,0.12765823,111260.0,111240.0,0.27039126]
[1756120201047,0.17977528,111250.0,111240.0,0.0001]
[1756120201334,0.46765823,111260.0,111240.0,0.24258475]
[1756120201549,0.46765823,111260.0,111250.0,0.08688475]
[1756120201816,0.12765823,111260.0,111250.0,0.08688475]
[1756120202085,0.10063723,111260.0,111250.0,0.08688475]
[1756120202309,0.10163723,111260.0,111250.0,0.08688475]
[1756120202754,0.10063723,111260.0,111250.0,0.08688475]
[1756120203024,0.10263723,111260.0,111250.0,0.08688475]
[1756120203239,0.10163723,111260.0,111250.0,0.08688475]
[1756120203508,0.10063723,111260.0,111250.0,0.08688475]
[1756120204402,0.11470242,111260.0,111250.0,0.08688475]
[1756120204992,0.11470242,111260.0,111250.0,0.24236475]
[1756120206835,0.01406519,111260.0,111250.0,0.24236475]
[1756120209136,0.01406519,111260.0,111250.0,0.29343123]
[1756120209351,0.01406519,111260.0,111250.0,0.29375123]
[1756120210024,0.01406519,111260.0,111250.0,0.13795123]
[1756120210203,0.01406519,111260.0,111250.0,0.24304475]
[1756120210405,0.19382431,111260.0,111250.0,0.24304475]
[1756120210627,0.01406519,111260.0,111250.0,0.24304475]
[1756120211174,0.19382431,111260.0,111250.0,0.08688475]
[1756120211388,0.19382431,111260.0,111250.0,0.24300475]
[1756120212235,0.17975912,111260.0,111250.0,0.24400475]
[1756120212846,0.17974371,111270.0,111250.0,0.24400475]
[1756120213052,0.17974371,111270.0,111250.0,0.24600475]
[1756120213227,0.17974371,111270.0,111260.0,0.15596]
[1756120213427,0.17974371,111270.0,111260.0,0.24284475]
[1756120215581,0.19380758,111270.0,111260.0,0.24284475]
[1756120215789,0.19380758,111270.0,111260.0,0.08688475]
[1756120216005,0.19380758,111270.0,111260.0,0.24276475]
[1756120216887,0.19380758,111270.0,111260.0,0.08688475]
[1756120217093,0.17977374,111260.0,111250.0,0.1558]
[1756120217305,0.18127374,111260.0,111250.0,0.24268475]
[1756120217517,0.18127374,111260.0,111250.0,0.24797475]
[1756120217942,0.22981572,111270.0,111250.0,0.24797475]
[1756120218157,0.22981572,111270.0,111260.0,0.00315]
[1756120218289,0.22981572,111270.0,111260.0,0.00529]
[1756120218508,0.23081572,111270.0,111260.0,0.00529]
[1756120218917,0.23131572,111270.0,111260.0,0.00529]
[1756120219320,0.23081572,111270.0,111260.0,0.00529]
[1756120219772,0.23131572,111270.0,111260.0,0.00529]
[1756120219926,0.23131572,111270.0,111260.0,0.00315]
[1756120220128,0.23231572,111270.0,111260.0,0.00315]
[1756120220690,0.23331572,111270.0,111260.0,0.00315]
[1756120221206,0.23331572,111270.0,111260.0,0.00529]
[1756120222540,0.23331572,111270.0,111260.0,0.00315]
[1756120226400,0.23331572,111270.0,111260.0,0.00529]
[1756120226536,0.22432783,111270.0,111260.0,0.00529]
[1756120226754,0.22432783,111270.0,111260.0,0.09217475]
[1756120226755,0.01606387,111270.0,111260.0,0.09217475]
[1756120226972,0.01606387,111270.0,111260.0,0.09442173]
[1756120227355,0.01606387,111270.0,111260.0,0.09217475]
[1756120227562,0.01606387,111270.0,111260.0,0.09442173]
[1756120227762,0.002,111270.0,111260.0,0.09442173]
[1756120227980,0.001,111270.0,111260.0,0.14453156]
[1756120228164,0.001,111270.0,111260.0,0.09442173]
[1756120228764,0.22476477,111290.0,111260.0,0.09442173]
[1756120228960,0.001,111270.0,111260.0,0.00663396]
[1756120229131,0.001,111270.0,111260.0,0.24915871]
[1756120229338,0.22489481,111290.0,111260.0,0.24466475]
[1756120229544,0.24166951,111290.0,111270.0,0.09003475]
[1756120229920,0.58166951,111290.0,111280.0,0.00315]
[1756120230267,0.58415951,111290.0,111280.0,0.00529]
[1756120230479,0.58215951,111290.0,111280.0,0.00529]
[1756120230886,0.58415951,111290.0,111280.0,0.00529]
[1756120231083,0.59822168,111290.0,111280.0,0.00529]
[1756120231697,0.59622168,111290.0,111280.0,0.00529]
[1756120231882,0.59822168,111290.0,111280.0,0.00529]
[1756120232385,0.59622168,111290.0,111280.0,0.00529]
[1756120232645,0.59822168,111290.0,111280.0,0.00529]
[1756120232803,0.59773168,111290.0,111280.0,0.09217475]
[1756120233020,0.58366951,111290.0,111280.0,0.09217475]
[1756120233376,0.58716951,111290.0,111280.0,0.09217475]
[1756120234434,0.58716951,111290.0,111280.0,0.08688475]
[1756120234639,0.67403916,111290.0,111280.0,0.08688475]
[1756120236289,0.68810143,111290.0,111280.0,0.08688475]
[1756120236498,0.17974304,111270.0,111260.0,0.00315]
[1756120236722,0.18124304,111270.0,111260.0,0.08688475]
[1756120237292,0.17975912,111260.0,111250.0,0.22969163]
[1756120237536,0.18125912,111260.0,111250.0,0.31657638]
[1756120237739,0.18125912,111260.0,111250.0,0.24228475]
[1756120237961,0.17977528,111250.0,111240.0,0.07237]
[1756120238159,0.18127528,111250.0,111240.0,0.31150475]
[1756120238674,0.18127528,111250.0,111240.0,0.31465475]
[1756120238881,0.1953407,111250.0,111240.0,0.31465475]
[1756120239332,0.19547066,111250.0,111240.0,0.15925475]
[1756120239544,0.19547066,111250.0,111240.0,0.31679475]
[1756120239967,0.19397066,111250.0,111240.0,0.31679475]
[1756120240216,0.19397066,111250.0,111240.0,0.31979475]
[1756120240611,0.19397066,111250.0,111240.0,0.31679475]
[1756120241686,0.17990524,111250.0,111240.0,0.31679475]
[1756120242124,0.17990524,111250.0,111240.0,0.31683475]
[1756120242745,0.16872687,111260.0,111240.0,0.31683475]
[1756120242987,0.17977528,111250.0,111240.0,0.31683475]
[1756120243219,0.20678408,111260.0,111250.0,0.00295]
[1756120243435,0.027022,111260.0,111250.0,0.09197475]
[1756120243644,0.027022,111260.0,111250.0,0.09422194]
[1756120244085,0.001,111260.0,111250.0,0.09422194]
[1756120244296,0.51974446,111270.0,111250.0,0.09422194]
[1756120244523,0.21573215,111280.0,111260.0,0.24531475]
[1756120244732,0.21573215,111280.0,111270.0,0.00509]
[1756120244938,0.027019,111280.0,111270.0,0.09422153]
[1756120245132,0.17972681,111280.0,111270.0,0.09197475]
[1756120245760,0.01406292,111280.0,111270.0,0.09197475]
[1756120247260,0.01406292,111280.0,111270.0,0.09422153]
[1756120247936,0.01506292,111280.0,111270.0,0.09422153]
[1756120248576,0.01506292,111280.0,111270.0,0.16338153]
[1756120248789,0.01406292,111280.0,111270.0,0.16562831]
[1756120249230,0.01506292,111280.0,111270.0,0.16562831]
[1756120249676,0.01506292,111280.0,111270.0,0.31661475]
[1756120249887,0.01506292,111280.0,111270.0,0.31861475]
[1756120250305,0.01506292,111280.0,111270.0,0.49835771]
[1756120250514,0.01406292,111280.0,111270.0,0.49835771]
[1756120250949,0.01406292,111280.0,111270.0,0.50043771]
[1756120251133,0.01406292,111280.0,111270.0,0.49843771]
[1756120251573,0.00903485,111290.0,111270.0,0.31969475]
[1756120251780,0.00916487,111290.0,111280.0,0.24764133]
[1756120251928,0.00013002,111290.0,111280.0,0.24753475]
[1756120252331,0.00013002,111290.0,111280.0,0.24745475]
[1756120253183,0.00013002,111290.0,111280.0,0.09197475]
[1756120253386,0.00013002,111290.0,111280.0,0.24966133]
[1756120253615,0.00013002,111290.0,111280.0,0.24741475]
[1756120254132,0.00013002,111290.0,111280.0,0.24941475]